bitfinex/quotes_SOLUSD_20250722
["timestamp","ask_amount","ask_price","bid_price","bid_amount"]
[1753154549387,7.24557423,201.07,201.06,37.58805242]
[1753154549793,0.1,201.07,201.06,37.58805242]
[1753154550591,0.1,201.07,201.06,45.43362665]
[1753154551290,0.1,201.07,201.06,50.40726635]
[1753154551899,0.06,201.19,201.06,98.66136562]
[1753154552192,0.06,201.19,201.18,7.14557423]
[1753154552398,4.96812615,201.29,201.18,45.44557423]
[1753154552602,7.14557423,201.33,201.26,7.14557423]
[1753154552806,12.41605695,201.36,201.16,17.39889619]
[1753154552807,7.14557423,201.36,201.29,7.14557423]
[1753154553099,0.76,201.37,201.31,7.14557423]
[1753154553297,0.06,201.37,201.29,0.7]
[1753154553499,7.14557423,201.34,201.3,38.42]
[1753154553687,0.7,201.34,201.3,38.42]
[1753154553888,7.20557423,201.37,201.31,0.7]
[1753154554086,7.14557423,201.33,201.3,38.42]
[1753154554281,7.14557423,201.36,201.3,38.42]
[1753154554499,5.0260291,201.37,201.3,46.26557423]
[1753154554795,7.14557423,201.33,201.27,7.14557423]
[1753154554992,7.14557423,201.29,201.28,38.4]
[1753154555201,7.14557423,201.29,201.23,0.7]
[1753154555392,7.14557423,201.31,201.24,45.54557423]
[1753154555788,7.14557423,201.29,201.24,38.4]
[1753154556190,7.14557423,201.25,201.08,6.5406]
[1753154556378,26.7,201.26,201.15,7.14557423]
[1753154556576,26.0,201.24,201.16,39.06]
[1753154556985,7.14557423,201.22,201.16,39.06]
[1753154557180,10.59800305,201.17,201.16,38.36]
[1753154557599,16.78468397,201.19,201.16,38.36]
[1753154557779,10.59800305,201.17,201.16,38.36]
[1753154557986,11.26800305,201.17,201.16,38.36]
[1753154558180,33.02360713,201.17,201.16,13.14772105]
[1753154558399,33.02360713,201.17,201.05,1.6321]
[1753154558400,45.45090742,201.17,201.05,1.6321]
[1753154558601,10.59800305,201.12,201.06,38.42]
[1753154558782,10.59800305,201.13,201.07,10.59800305]
[1753154558982,10.59800305,201.16,201.1,10.59800305]
[1753154559285,4.97017892,201.2,201.12,10.59800305]
[1753154559586,4.97017892,201.2,201.11,39.07]
[1753154559587,10.59800305,201.13,201.11,38.42]
[1753154559901,10.59800305,201.12,201.11,38.42]
[1753154560200,15.57015897,201.12,201.11,38.42]
[1753154560405,4.97215592,201.12,201.11,38.42]
[1753154560699,15.57015897,201.12,201.11,38.42]
[1753154561682,10.59800305,201.14,201.11,38.42]
[1753154561898,10.59800305,201.13,201.11,38.42]
[1753154562097,15.59800305,201.12,201.11,38.42]
[1753154562299,15.57015897,201.12,201.11,38.42]
[1753154562501,16.24015897,201.12,201.11,38.42]
[1753154562684,59.02484294,201.12,201.11,38.42]
[1753154562890,48.42683989,201.12,201.11,38.42]
[1753154563092,59.02484294,201.12,201.11,38.42]
[1753154563304,59.02484294,201.12,201.03,35.78]
[1753154563506,60.8572297,201.12,201.04,38.32]
[1753154563707,10.59800305,201.08,201.04,38.32]
[1753154563887,10.59800305,201.07,201.04,38.32]
[1753154564307,10.59800305,201.06,201.05,38.32]
[1753154564692,15.57154493,201.07,201.05,38.32]
[1753154565007,10.59800305,201.08,201.05,38.32]
[1753154565210,10.59800305,201.06,201.05,38.32]
[1753154565388,11.26800305,201.06,201.05,38.32]
[1753154566296,16.24164275,201.06,201.05,38.32]
[1753154566504,4.9736397,201.06,201.05,38.32]
[1753154567104,5.0,201.06,201.05,38.32]
[1753154567305,15.59800305,201.06,201.05,38.32]
[1753154567704,5.0,201.06,201.05,38.32]
[1753154568014,10.59800305,201.07,201.05,38.32]
[1753154568710,15.57142234,201.07,201.05,38.32]
[1753154568906,10.59800305,201.06,201.05,38.32]
[1753154569402,36.59800305,201.06,201.05,38.32]
[1753154569602,53.38268702,201.06,201.05,38.32]
[1753154569808,16.78468397,201.01,201.0,0.03]
[1753154570115,16.78468397,201.01,201.0,1e-08]
[1753154570116,53.38268702,201.01,201.0,1e-08]
[1753154570304,42.24287992,201.01,201.0,1e-08]
[1753154570490,58.35756389,201.01,201.0,1e-08]
[1753154570912,41.57287992,201.01,201.0,1e-08]
[1753154571208,10.59800305,201.01,201.0,1e-08]
[1753154572010,30.97465609,201.02,201.0,1e-08]
[1753154572213,10.59800305,201.01,201.0,1e-08]
[1753154572419,15.57287992,201.01,201.0,1e-08]
[1753154573192,10.59800305,201.01,201.0,1e-08]
[1753154573715,21.7585843,201.05,201.0,1e-08]
[1753154573906,10.59800305,201.01,201.0,1e-08]
[1753154574622,15.57287992,201.01,201.0,1e-08]
[1753154575312,0.67,201.04,201.0,0.65000001]
[1753154575313,26.0,201.04,201.0,0.65000001]
[1753154575515,10.59800305,201.02,201.0,1e-08]
[1753154575693,10.59800305,201.03,201.0,1e-08]
[1753154575902,10.59800305,201.05,201.01,0.65]
[1753154576105,26.0,201.04,201.02,38.83]
[1753154576306,26.0,201.04,201.0,1e-08]
[1753154576307,27.38268702,201.03,201.0,38.20000001]
[1753154576528,15.57287992,201.01,201.0,38.20000001]
[1753154577241,16.24287992,201.01,201.0,38.20000001]
[1753154577609,33.02756389,201.01,201.0,1e-08]
[1753154577814,16.78468397,200.96,200.91,0.03]
[1753154578027,16.78468397,200.96,200.91,38.21]
[1753154578028,10.59800305,200.92,200.91,38.21]
[1753154578326,27.38268702,200.92,200.91,38.21]
[1753154578511,10.59800305,200.92,200.91,38.21]
[1753154578713,24.87438435,201.01,200.91,38.21]
[1753154578714,4.97586704,200.97,200.91,38.86]
[1753154578913,4.97586704,200.97,200.91,0.68]
[1753154578914,10.59800305,200.92,200.91,0.68]
[1753154579213,50.59218663,200.92,200.91,0.03]
[1753154579413,49.92218663,200.92,200.91,0.03]
[1753154579614,16.78468397,200.87,200.83,0.03]
[1753154579907,23.92218663,200.84,200.83,0.03]
[1753154580334,7.13750266,200.8,200.79,38.48]
[1753154580643,0.67,200.9,200.79,46.26750266]
[1753154580932,7.13750266,200.8,200.79,0.85]
[1753154581230,7.13750266,200.8,200.79,38.48]
[1753154581417,24.59218663,200.8,200.79,1e-08]
[1753154581730,24.59218663,200.8,200.63,0.65]
[1753154581731,18.49566202,200.8,200.63,0.65]
[1753154581931,7.13750266,200.65,200.6,0.65]
[1753154582107,7.13750266,200.62,200.58,38.32]
[1753154582311,7.13750266,200.6,200.57,35.8]
[1753154582514,7.13750266,200.6,200.58,38.34]
[1753154582515,7.13750266,200.59,200.58,38.34]
[1753154582728,7.13750266,200.65,200.58,46.12750266]
[1753154582934,7.13750266,200.67,200.6,7.13750266]
[1753154583235,10.65743805,200.62,200.61,38.38]
[1753154583528,0.67,200.69,200.61,38.38]
[1753154583736,10.65743805,200.63,200.61,38.38]
[1753154583922,0.67,200.68,200.61,38.38]
[1753154584117,26.0,200.67,200.61,38.38]
[1753154584320,16.78468397,200.71,200.61,38.38]
[1753154584629,10.65743805,200.67,200.61,38.38]
[1753154584808,10.65743805,200.64,200.61,38.38]
[1753154585013,4.98256103,200.7,200.61,38.38]
[1753154585221,10.65743805,200.67,200.61,39.03]
[1753154585420,10.65743805,200.71,200.64,10.65743805]
[1753154585631,10.65743805,200.71,200.65,11.30743805]
[1753154585837,10.65743805,200.71,200.65,0.65]
[1753154586017,10.65743805,200.69,200.65,0.65]
[1753154586219,10.65743805,200.69,200.61,43.36472856]
[1753154586220,10.65743805,200.68,200.62,0.65]
[1753154586535,10.65743805,200.7,200.64,10.65743805]
[1753154586724,10.65743805,200.7,200.63,10.65743805]
[1753154587043,10.65743805,200.71,200.64,11.30743805]
[1753154587331,10.65743805,200.75,200.69,10.65743805]
[1753154587534,10.65743805,200.76,200.7,48.97743805]
[1753154587747,10.65743805,200.74,200.7,38.32]
[1753154588053,10.65743805,200.75,200.7,38.98]
[1753154588230,16.78468397,200.78,200.7,38.98]
[1753154588537,10.65743805,200.75,200.7,38.98]
[1753154588710,10.65743805,200.75,200.7,38.32]
[1753154588916,10.65743805,200.78,200.72,10.65743805]
[1753154589314,10.65743805,200.79,200.73,10.65743805]
[1753154589937,10.65743805,200.79,200.71,0.66]
[1753154590123,10.65743805,200.76,200.72,38.28]
[1753154590325,10.65743805,200.77,200.72,38.28]
[1753154590528,26.0,200.73,200.53,10.0]
[1753154590834,16.78468397,200.7,200.58,10.65743805]
[1753154591037,4.9828093,200.69,200.59,0.66]
[1753154591333,10.65743805,200.67,200.59,11.31743805]
[1753154591637,4.98255731,200.71,200.59,0.03]
[1753154591812,26.71,200.72,200.63,10.65743805]
[1753154591813,10.65743805,200.7,200.63,10.65743805]
[1753154592009,10.65743805,200.7,200.64,38.38]
[1753154592431,4.98156819,200.74,200.66,10.65743805]
[1753154592732,15.6387629,200.75,200.68,10.65743805]
[1753154592929,15.6387629,200.75,200.67,0.66]
[1753154593129,15.6387629,200.75,200.68,10.65743805]
[1753154593328,4.98097297,200.77,200.7,10.65743805]
[1753154593531,4.98097297,200.77,200.71,49.01743805]
[1753154593833,4.98058781,200.78,200.71,49.01743805]
[1753154594013,10.65743805,200.8,200.73,10.65743805]
[1753154594216,10.65743805,200.81,200.74,10.65743805]
[1753154594434,4.9795837,200.82,200.76,10.65743805]
[1753154594669,4.9795837,200.82,200.77,38.34]
[1753154594841,10.65743805,200.78,200.71,0.66]
[1753154595042,10.65743805,200.76,200.74,38.34]
[1753154595420,10.65743805,200.75,200.74,38.34]
[1753154596220,28.15212202,200.75,200.69,38.34]
[1753154596438,17.49468397,200.75,200.69,38.34]
[1753154596651,10.65743805,200.72,200.69,38.34]
[1753154596945,4.98231278,200.71,200.69,38.34]
[1753154597541,15.63975083,200.71,200.69,38.34]
[1753154598036,26.0,200.67,200.65,0.03]
[1753154598546,10.65743805,200.67,200.65,0.03]
[1753154598920,15.64099232,200.66,200.65,0.03]
[1753154599119,16.78468397,200.65,200.59,0.03]
[1753154599319,26.0,200.62,200.59,0.03]
[1753154599521,26.0,200.62,200.59,1e-08]
[1753154599522,27.44212202,200.6,200.59,1e-08]
[1753154599822,16.78468397,200.56,200.54,11.05773771]
[1753154600021,26.0,200.57,200.54,11.05773771]
[1753154600022,28.15212202,200.55,200.54,11.05773771]
[1753154600237,26.0,200.55,200.54,11.05773771]
[1753154600444,36.65743805,200.55,200.54,11.05773771]
[1753154600736,26.0,200.55,200.54,11.05773771]
[1753154600921,41.64372575,200.55,200.54,11.05773771]
[1753154601124,30.9862877,200.55,200.54,11.05773771]
[1753154601322,41.64372575,200.55,200.54,11.05773771]
[1753154601744,15.64372575,200.55,200.54,11.05773771]
[1753154601943,33.13840972,200.55,200.54,11.05773771]
[1753154602244,5.6962877,200.55,200.54,1e-08]
[1753154602556,4.9862877,200.55,200.54,1e-08]
[1753154602851,16.35372575,200.55,200.54,1e-08]
[1753154603226,4.98554192,200.58,200.54,1e-08]
[1753154603426,10.65743805,200.55,200.54,1e-08]
[1753154604343,0.71,200.57,200.54,1e-08]
[1753154604550,30.98554192,200.58,200.54,1e-08]
[1753154604732,36.65743805,200.58,200.55,0.66]
[1753154604930,16.78468397,200.62,200.54,1e-08]
[1753154604931,15.64281402,200.59,200.54,1e-08]
[1753154605127,10.65743805,200.58,200.54,0.66000001]
[1753154605344,10.65743805,200.64,200.57,10.65743805]
[1753154605650,10.65743805,200.63,200.58,38.88]
[1753154605835,10.65743805,200.65,200.59,0.66]
[1753154606360,10.65743805,200.67,200.59,0.66]
[1753154606656,10.65743805,200.67,200.61,10.65743805]
[1753154606950,10.65743805,200.69,200.63,10.65743805]
[1753154607153,4.98181637,200.73,200.65,10.65743805]
[1753154607345,10.65743805,200.72,200.66,0.66]
[1753154607844,30.98181637,200.73,200.66,0.66]
[1753154607845,10.65743805,200.71,200.66,0.66]
[1753154608231,10.65743805,200.74,200.68,10.65743805]
[1753154608449,10.65743805,200.76,200.7,10.65743805]
[1753154608649,10.65743805,200.76,200.71,38.18]
[1753154608824,0.71,200.8,200.71,38.18]
[1753154608825,10.65743805,200.74,200.71,38.18]
[1753154609147,10.65743805,200.76,200.71,38.18]
[1753154609450,10.65743805,200.79,200.72,11.31743805]
[1753154609624,10.65743805,200.76,200.72,0.66]
[1753154609822,10.65743805,200.76,200.63,26.0]
[1753154609823,10.65743805,200.76,200.7,10.65743805]
[1753154610028,10.65743805,200.71,200.6,4.98504486]
[1753154610249,10.65743805,200.71,200.65,0.66]
[1753154610423,10.65743805,200.72,200.65,11.31743805]
[1753154610624,10.65743805,200.68,200.56,20.37845187]
[1753154610829,10.65743805,200.67,200.62,0.66]
[1753154611054,10.65743805,200.65,200.63,38.16]
[1753154611234,13.16600402,200.71,200.63,38.16]
[1753154611235,10.65743805,200.71,200.64,11.31743805]
[1753154611429,10.65743805,200.76,200.69,10.65743805]
[1753154611630,0.71,200.79,200.72,10.65743805]
[1753154611830,10.65743805,200.78,200.73,38.16]
[1753154612130,26.0,200.71,200.61,0.66]
[1753154612332,10.65743805,200.62,200.52,0.66]
[1753154612641,10.65743805,200.6,200.54,49.55743806]
[1753154612836,10.65743805,200.58,200.54,38.24000001]
[1753154613038,10.65743805,200.57,200.54,38.24000001]
[1753154613243,10.65743805,200.55,200.54,1e-08]
[1753154613753,28.15212202,200.55,200.54,1e-08]
[1753154614352,17.49468397,200.55,200.54,1e-08]
[1753154614536,28.15212202,200.55,200.54,1e-08]
[1753154615241,33.13840972,200.55,200.54,1e-08]
[1753154616329,22.48097167,200.55,200.54,1e-08]
[1753154616663,33.13840972,200.55,200.54,1e-08]
[1753154617350,15.64372575,200.55,200.54,1e-08]
[1753154617535,10.65743805,200.56,200.54,1e-08]
[1753154618033,30.98594217,200.57,200.54,1e-08]
[1753154618238,10.65743805,200.56,200.54,1e-08]
[1753154618434,15.64295817,200.59,200.55,0.72]
[1753154618640,4.98429945,200.63,200.55,0.72]
[1753154618957,10.65743805,200.58,200.54,38.16000001]
[1753154619135,10.65743805,200.57,200.54,38.16000001]
[1753154619330,15.6432707,200.57,200.54,38.16000001]
[1753154619655,10.65743805,200.55,200.54,1e-08]
[1753154620660,10.65743805,200.56,200.54,1e-08]
[1753154620844,4.9845479,200.62,200.54,11.37743806]
[1753154621037,10.65743805,200.6,200.55,0.72]
[1753154621344,10.65743805,200.6,200.56,0.72]
[1753154621558,10.65743805,200.61,200.57,0.72]
[1753154621943,10.65743805,200.6,200.54,0.72000001]
[1753154622134,10.65743805,200.59,200.54,0.72000001]
[1753154622341,30.9845479,200.62,200.55,11.37743805]
[1753154622644,0.71,200.7,200.61,10.65743805]
[1753154622849,10.65743805,200.68,200.62,48.79743805]
[1753154623152,10.65743805,200.64,200.61,38.16]
[1753154623336,0.71,200.69,200.61,38.16]
[1753154623337,10.65743805,200.66,200.61,38.16]
[1753154623537,10.65743805,200.65,200.61,38.16]
[1753154623857,10.65743805,200.64,200.61,38.16]
[1753154624053,10.65743805,200.64,200.59,0.72]
[1753154624245,0.71,200.63,200.6,38.14]
[1753154624562,10.65743805,200.61,200.6,38.14]
[1753154624947,10.65743805,200.64,200.6,38.86]
[1753154625140,5.69345159,200.67,200.6,38.12]
[1753154625340,10.65743805,200.64,200.6,38.12]
[1753154625542,26.0,200.67,200.61,0.72]
[1753154625739,3.55524379,200.66,200.62,10.65743805]
[1753154625941,10.65743805,200.71,200.64,10.65743805]
[1753154626247,0.71,200.75,200.6,55.56761544]
[1753154626248,4.98156819,200.74,200.65,11.37743805]
[1753154626449,10.65743805,200.7,200.66,0.14216157]
[1753154626789,14.21511246,200.69,200.68,0.14216157]
[1753154627068,40.21511246,200.69,200.68,0.14216157]
[1753154627280,40.92511246,200.69,200.68,0.14216157]
[1753154627447,45.90792176,200.69,200.68,0.14216157]
[1753154627649,45.19792176,200.69,200.68,0.14216157]
[1753154628042,16.78468397,200.68,200.67,38.12]
[1753154628244,16.78468397,200.68,200.61,38.1]
[1753154628245,31.70944847,200.68,200.61,38.1]
[1753154628459,3.55732645,200.67,200.62,0.14216157]
[1753154628762,10.65743805,200.64,200.62,0.14216157]
[1753154628955,26.0,200.67,200.62,0.14216157]
[1753154629261,10.65743805,200.71,200.65,10.65743805]
[1753154629466,10.65743805,200.74,200.69,0.14216157]
[1753154629676,10.65743805,200.74,200.71,0.14216157]
[1753154629677,26.0,200.74,200.71,0.14216157]
[1753154629965,10.65743805,200.73,200.71,0.14216157]
[1753154630169,10.65743805,200.72,200.71,6.36216157]
[1753154630353,10.65743805,200.74,200.71,6.36216157]
[1753154631057,26.0,200.75,200.71,6.36216157]
[1753154631256,15.63886597,200.75,200.71,6.36216157]
[1753154631449,10.65743805,200.73,200.71,6.36216157]
[1753154631651,10.65743805,200.74,200.71,44.42216157]
[1753154632057,10.65743805,200.73,200.71,44.42216157]
[1753154632462,10.65743805,200.74,200.71,44.42216157]
[1753154632643,10.65743805,200.73,200.71,44.42216157]
[1753154632848,30.98142792,200.75,200.71,44.42216157]
[1753154633048,10.65743805,200.73,200.71,44.42216157]
[1753154633341,26.0,200.75,200.71,45.14216157]
[1753154633578,41.63879991,200.75,200.71,45.14216157]
[1753154633871,10.65743805,200.77,200.73,0.14216157]
[1753154634175,10.65743805,200.78,200.73,0.14216157]
[1753154634346,10.65743805,200.79,200.75,0.14216157]
[1753154634661,10.65743805,200.81,200.77,0.14216157]
[1753154634864,0.06,200.82,200.79,10.79959962]
[1753154635166,0.06,200.82,200.81,0.14216157]
[1753154635349,0.06,200.82,200.81,38.12216157]
[1753154636055,0.06,200.82,200.81,54.4794313]
[1753154636463,0.06,200.91,200.81,54.4794313]
[1753154636652,0.06,200.91,200.87,0.14216157]
[1753154636847,0.06,200.91,200.86,10.65743805]
[1753154636848,0.06,200.91,200.89,0.14216157]
[1753154637565,0.06,200.91,200.88,33.08216157]
[1753154637860,0.06,200.91,200.89,11.37743805]
[1753154638274,0.06,200.91,200.9,11.37743805]
[1753154638769,0.06,200.91,200.88,33.08216157]
[1753154639272,0.06,200.91,200.9,10.65743805]
[1753154639769,0.06,200.91,200.9,0.86216157]
[1753154640273,0.06,200.91,200.81,0.72]
[1753154640274,36.71743805,200.91,200.81,0.72]
[1753154640475,10.65743805,200.88,200.82,37.9]
[1753154640673,0.06,200.91,200.85,10.79959962]
[1753154640994,10.65743805,200.87,200.82,37.9]
[1753154641158,10.65743805,200.83,200.79,35.86]
[1753154641459,4.97883993,200.85,200.8,37.92]
[1753154641658,10.65743805,200.82,200.8,37.92]
[1753154641981,26.0,200.89,200.82,0.14216157]
[1753154641982,10.65743805,200.89,200.82,0.14216157]
[1753154642155,10.65743805,200.89,200.84,0.14216157]
[1753154642355,0.06,200.92,200.86,0.14216157]
[1753154642356,10.65743805,200.9,200.86,0.14216157]
[1753154642549,4.97760079,200.9,200.86,0.14216157]
[1753154642766,10.65743805,200.89,200.86,0.14216157]
[1753154643170,4.97760079,200.9,200.86,0.14216157]
[1753154643359,0.06,200.92,200.88,10.79959962]
[1753154643557,0.06,200.92,200.9,10.79959962]
[1753154643760,0.06,200.92,200.9,48.69959962]
[1753154644073,0.06,200.92,200.9,49.41959962]
[1753154644459,0.06,200.92,200.9,0.86216157]
[1753154644663,0.06,200.92,200.9,49.41959962]
[1753154645378,0.06,200.92,200.9,54.39720041]
[1753154646161,0.06,200.92,200.9,61.04780041]
[1753154646469,0.06,200.96,200.9,84.14924045]
[1753154646672,0.06,200.96,200.95,10.79959962]
[1753154646873,0.06,200.96,200.95,48.67959962]
[1753154647262,0.06,200.96,200.95,49.39959962]
[1753154647462,0.06,200.96,200.95,54.37596189]
[1753154648504,4.97303349,201.09,200.96,0.14216157]
[1753154648788,16.78468397,201.1,201.02,10.79959962]
[1753154648960,27.44212202,201.1,201.02,48.61959962]
[1753154649161,4.97322436,201.08,201.02,48.61959962]
[1753154649356,4.97322436,201.08,201.02,49.27959962]
[1753154649562,0.72,201.11,201.02,37.94216157]
[1753154649778,10.65743805,201.1,201.02,49.25959962]
[1753154649969,4.97291595,201.09,201.02,49.25959962]
[1753154650169,4.97267716,201.1,201.02,49.25959962]
[1753154650462,30.97243028,201.11,201.02,54.23422901]
[1753154650781,0.1,201.12,201.02,54.23422901]
[1753154651280,4.97340099,201.07,201.02,0.80216157]
[1753154651457,10.65743805,201.08,201.02,37.92216157]
[1753154651777,10.65743805,201.05,201.02,37.78]
[1753154651982,5.07438193,201.03,201.02,37.78]
[1753154652180,5.07438193,201.03,201.02,37.92216157]
[1753154652378,0.1,201.03,201.02,37.92216157]
[1753154652580,5.07438193,201.03,201.02,37.92216157]
[1753154652976,5.07438193,201.03,200.95,4.97614022]
[1753154652977,16.45181998,201.03,200.95,0.66]
[1753154653178,10.65743805,201.02,200.96,37.76]
[1753154653685,10.65743805,200.97,200.9,10.65743805]
[1753154653985,10.65743805,200.95,200.91,37.76]
[1753154654162,10.65743805,200.97,200.92,37.76]
[1753154654363,0.72,200.97,200.92,37.76]
[1753154654660,10.65743805,200.95,200.92,37.76]
[1753154655061,10.65743805,200.98,200.92,37.76]
[1753154655475,10.65743805,200.98,200.93,0.14216157]
[1753154655673,4.97586704,200.97,200.93,0.14216157]
[1753154655882,26.0,201.01,200.96,0.14216157]
[1753154656089,26.0,201.01,200.98,0.14216157]
[1753154656407,10.65743805,200.99,200.98,0.14216157]
[1753154656572,11.37743805,201.0,200.98,0.14216157]
[1753154656897,10.65743805,201.0,200.98,0.14216157]
[1753154657064,15.63206744,201.02,200.98,0.14216157]
[1753154657373,10.65743805,201.01,200.98,0.14216157]
[1753154657573,15.63255399,201.01,200.98,0.14216157]
[1753154657989,11.37743805,201.0,200.99,37.90216157]
[1753154658572,28.16212202,201.0,200.87,0.66]
[1753154658871,10.65743805,200.95,200.89,0.14216157]
[1753154659072,10.65743805,200.95,200.88,48.41743805]
[1753154659271,26.0,200.94,200.88,10.65743805]
[1753154659490,26.0,200.92,200.89,37.76]
[1753154659706,30.97717769,200.92,200.89,37.76]
[1753154659864,10.65743805,200.91,200.89,37.76]
[1753154660190,10.65743805,200.9,200.89,37.76]
[1753154660486,0.72,200.91,200.89,37.76]
[1753154660690,10.65743805,200.91,200.89,37.76]
[1753154661184,30.97717769,200.92,200.89,37.76]
[1753154661385,10.65743805,200.9,200.89,37.76]
[1753154661592,15.63479109,200.91,200.9,0.14216157]
[1753154661895,10.65743805,200.91,200.9,0.14216157]
[1753154662406,42.78468397,200.9,200.8,0.66]
[1753154662572,10.65743805,200.83,200.81,37.76]
[1753154662974,10.65743805,200.84,200.81,37.76]
[1753154663299,26.0,200.86,200.81,37.76]
[1753154663300,10.65743805,200.82,200.81,37.76]
[1753154663475,11.37743805,200.82,200.81,37.76]
[1753154663785,33.14170572,200.82,200.81,37.76]
[1753154663987,26.0,200.8,200.79,0.03]
[1753154664186,53.44212202,200.8,200.67,0.66]
[1753154664386,10.65743805,200.74,200.68,48.41743805]
[1753154664707,10.65743805,200.76,200.69,10.65743805]
[1753154664999,16.78468397,200.78,200.72,10.65743805]
[1753154665000,10.65743805,200.78,200.72,10.65743805]
[1753154665288,0.72,200.86,200.77,10.79959962]
[1753154665493,11.37743805,200.86,200.79,10.79959962]
[1753154665890,10.65743805,200.86,200.81,0.14216157]
[1753154666103,0.72,200.98,200.86,0.14216157]
[1753154666398,10.65743805,200.99,200.94,0.14216157]
[1753154666601,0.72,201.02,200.96,0.14216157]
[1753154666795,0.1,201.03,200.98,10.65743805]
[1753154666999,0.1,201.03,200.99,0.14216157]
[1753154667198,0.1,201.03,201.01,0.14216157]
[1753154667395,0.1,201.03,201.02,11.45959962]
[1753154668003,0.1,201.03,201.02,16.43422901]
[1753154668400,0.1,201.12,201.03,0.14216157]
[1753154668592,0.1,201.12,201.08,10.79959962]
[1753154668905,0.1,201.12,201.08,48.55959962]
[1753154669088,0.1,201.12,201.08,49.21959962]
[1753154669284,0.1,201.12,201.09,0.14216157]
[1753154669484,0.1,201.12,201.11,10.79959962]
[1753154669684,0.1,201.12,201.11,11.45959962]
[1753154673025,0.06,201.19,201.12,0.14216157]
[1753154673316,0.06,201.19,201.18,10.79959962]
[1753154673610,0.06,201.19,201.18,48.53959962]
[1753154673815,0.06,201.19,201.18,49.19959962]
[1753154674628,0.06,201.19,201.18,55.34169962]
[1753154674931,0.06,201.24,201.19,0.14216157]
[1753154675220,0.06,201.24,201.23,10.79959962]
[1753154675425,0.06,201.24,201.23,48.53959962]
[1753154675605,0.06,201.24,201.23,49.19959962]
[1753154676594,0.06,201.24,201.23,48.51959962]
[1753154677021,0.06,201.24,201.18,6.1421]
[1753154677195,0.06,201.24,201.21,10.65743805]
[1753154677516,0.06,201.24,201.22,37.72]
[1753154677517,10.71743805,201.24,201.22,37.72]
[1753154677695,11.43743805,201.24,201.23,37.72]
[1753154677902,0.06,201.24,201.23,37.86216157]
[1753154678128,31.02919101,201.24,201.23,37.72]
[1753154678423,5.02919101,201.24,201.23,37.86216157]
[1753154679129,16.35662906,201.24,201.23,37.86216157]
[1753154679299,5.02919101,201.24,201.23,37.86216157]
[1753154679748,0.06,201.24,201.23,49.20959962]
[1753154680023,0.06,201.24,201.23,48.51959962]
[1753154681047,0.06,201.24,201.23,0.14216157]
[1753154681348,0.06,201.24,201.23,37.74]
[1753154681545,0.06,201.24,201.23,37.88216157]
[1753154681732,0.06,201.24,201.23,37.74]
[1753154681934,0.06,201.24,201.23,37.88216157]
[1753154682445,0.06,201.24,201.23,37.86216157]
[1753154683032,28.17212202,201.24,201.21,37.7]
[1753154683256,0.67,201.23,201.21,12.58904563]
[1753154683620,0.06,201.24,201.21,12.58904563]
[1753154683846,11.38743805,201.24,201.22,0.14216157]
[1753154684116,16.296876,201.23,201.22,0.14216157]
[1753154684427,41.626876,201.23,201.22,0.14216157]
[1753154684765,42.296876,201.23,201.22,0.14216157]
[1753154685122,10.65743805,201.22,201.21,12.58904563]
[1753154685322,11.32743805,201.22,201.21,12.58904563]
[1753154685830,26.0,201.18,201.08,11.34743805]
[1753154686035,4.97240316,201.11,201.06,17.24583805]
[1753154686226,4.97240316,201.11,201.09,37.7]
[1753154686428,4.97208324,201.13,201.1,11.34743805]
[1753154686740,4.97208324,201.13,201.09,37.7]
[1753154687523,4.97208324,201.13,201.1,0.14216157]
[1753154687721,15.62952129,201.13,201.1,0.14216157]
[1753154687954,15.62952129,201.13,201.06,0.03]
[1753154687955,10.65743805,201.11,201.06,0.03]
[1753154688140,10.65743805,201.07,201.06,0.03]
[1753154688522,12.43190979,201.1,201.06,0.03]
[1753154688523,10.65743805,201.08,201.06,0.03]
[1753154688728,10.65743805,201.07,201.06,0.03]
[1753154688924,10.65743805,201.09,201.06,0.03]